bitfinex/quotes_BTCUSD_20240821
["timestamp","ask_amount","ask_price","bid_price","bid_amount"]
[1724250148803,0.067068,59764.0,59744.0,0.608]
[1724250148804,0.00913691,59763.0,59744.0,0.608]
[1724250149016,0.334623,59769.0,59744.0,0.608]
[1724250149017,0.68209154,59776.0,59749.0,0.3968]
[1724250149231,0.00905995,59769.0,59754.0,0.3968]
[1724250149436,0.334599,59773.0,59754.0,0.3968]
[1724250149437,0.19355299,59770.0,59754.0,0.56080298]
[1724250149673,0.02624399,59770.0,59754.0,0.56080298]
[1724250149888,0.16400298,59772.0,59754.0,0.56080298]
[1724250149889,0.167314,59768.0,59754.0,0.56080298]
[1724250150112,0.334578,59777.0,59754.0,0.56080298]
[1724250150113,0.167312,59769.0,59754.0,0.56080298]
[1724250150387,0.06705,59781.0,59754.0,0.56080298]
[1724250150388,0.167263,59786.0,59771.0,0.167304]
[1724250150591,0.1938,59791.0,59772.0,0.16400298]
[1724250151007,0.167261,59787.0,59772.0,0.16400298]
[1724250151217,0.167257,59789.0,59772.0,0.16400298]
[1724250151428,0.168081,59788.0,59772.0,0.16400298]
[1724250151641,0.000823,59788.0,59773.0,0.167298]
[1724250151844,0.000823,59788.0,59772.0,0.16400298]
[1724250152052,0.008823,59788.0,59773.0,0.167298]
[1724250152707,0.001,59783.0,59762.0,0.6049]
[1724250152917,0.001,59779.0,59765.0,0.49229154]
[1724250153122,0.167314,59768.0,59765.0,0.49229154]
[1724250153343,0.4246,59776.0,59755.0,0.5701]
[1724250153565,0.49859398,59775.0,59758.0,0.16734]
[1724250153777,0.49859398,59775.0,59755.0,0.73410298]
[1724250153778,0.167306,59771.0,59755.0,0.73410298]
[1724250154003,0.59859398,59775.0,59756.0,0.16400298]
[1724250154004,0.1,59775.0,59756.0,0.16400298]
[1724250154255,0.1,59775.0,59757.0,0.334685]
[1724250154461,0.1,59775.0,59755.0,0.5701]
[1724250154462,0.1,59775.0,59762.0,0.4114]
[1724250154672,0.334532,59785.0,59762.0,0.4114]
[1724250154673,0.334532,59785.0,59768.0,0.167311]
[1724250154890,0.2120509,59788.0,59768.0,0.167311]
[1724250154891,0.005,59775.0,59772.0,0.167301]
[1724250155106,0.005,59775.0,59773.0,0.399]
[1724250155328,0.36673721,59788.0,59773.0,0.566299]
[1724250155573,0.36673721,59788.0,59774.0,0.185]
[1724250155574,0.000823,59788.0,59774.0,0.185]
[1724250155774,0.003,59775.0,59774.0,0.686889]
[1724250156205,0.003,59775.0,59774.0,0.85089198]
[1724250156434,0.003,59775.0,59774.0,0.51629898]
[1724250156648,0.003,59775.0,59774.0,0.85089198]
[1724250156886,0.00378215,59775.0,59774.0,0.51629898]
[1724250157129,0.000824,59775.0,59774.0,0.51629898]
[1724250157648,0.000824,59775.0,59774.0,0.34900298]
[1724250157937,0.000824,59775.0,59773.0,0.001]
[1724250158212,0.001824,59775.0,59774.0,0.011]
[1724250158450,0.002824,59775.0,59774.0,0.019]
[1724250158941,0.002824,59775.0,59774.0,0.011]
[1724250158942,0.503706,59775.0,59774.0,0.011]
[1724250159192,0.503706,59775.0,59762.0,0.3907]
[1724250159193,0.167314,59768.0,59762.0,0.3907]
[1724250159442,0.334605,59772.0,59762.0,0.3907]
[1724250159730,0.102824,59775.0,59754.0,0.353451]
[1724250159731,0.55240298,59771.0,59754.0,0.413]
[1724250159963,0.001,59769.0,59749.0,0.49229154]
[1724250160248,0.55240298,59771.0,59731.0,0.49229154]
[1724250160249,0.167369,59749.0,59742.0,0.1815]
[1724250160509,0.1947,59766.0,59741.0,0.405]
[1724250160510,0.4126,59754.0,59746.0,0.49229154]
[1724250160820,0.4126,59754.0,59741.0,0.405]
[1724250160821,0.167356,59753.0,59741.0,0.405]
[1724250161013,0.1,59758.0,59744.0,0.16738]
[1724250161307,0.1,59758.0,59744.0,0.16400298]
[1724250161543,0.1,59758.0,59744.0,0.33138198]
[1724250161754,0.0602008,59758.0,59744.0,0.16400298]
[1724250161961,0.0602008,59758.0,59741.0,0.405]
[1724250161962,0.005,59749.0,59741.0,0.405]
[1724250162165,0.334713,59753.0,59741.0,0.405]
[1724250162166,0.167364,59750.0,59741.0,0.405]
[1724250162384,0.16736,59752.0,59741.0,0.405]
[1724250162590,0.167364,59750.0,59741.0,0.405]
[1724250163025,0.334734,59749.0,59735.0,0.3837]
[1724250163238,0.334734,59749.0,59701.0,0.0952]
[1724250163239,0.1872,59729.0,59714.0,0.3837]
[1724250163448,0.1872,59729.0,59717.0,0.49229154]
[1724250163662,0.1,59728.0,59717.0,0.49229154]
[1724250163879,0.167429,59727.0,59714.0,0.3837]
[1724250164102,0.1,59728.0,59714.0,0.3837]
[1724250164563,0.1,59728.0,59719.0,0.167449]
[1724250164787,0.1,59734.0,59719.0,0.16400298]
[1724250165018,0.1883,59738.0,59720.0,0.16400298]
[1724250165019,0.007,59728.0,59720.0,0.16400298]
[1724250165230,0.1091577,59737.0,59720.0,0.16400298]
[1724250165231,0.167403,59736.0,59720.0,0.55630298]
[1724250165647,0.006,59728.0,59720.0,0.55630298]
[1724250165884,0.011,59728.0,59720.0,0.55630298]
[1724250166366,0.011,59728.0,59724.0,0.3922]
[1724250166367,0.006,59728.0,59724.0,0.3922]
[1724250166595,0.006,59728.0,59725.0,0.16400298]
[1724250166806,0.306,59728.0,59725.0,0.16400298]
[1724250167026,0.3,59728.0,59724.0,0.3922]
[1724250167238,0.334857,59727.0,59720.0,0.001]
[1724250167449,0.334863,59726.0,59720.0,0.001]
[1724250167666,0.3,59728.0,59720.0,0.16800298]
[1724250167879,0.3,59728.0,59720.0,0.16400298]
[1724250168309,0.301,59728.0,59724.0,0.006]
[1724250168723,0.3,59728.0,59720.0,0.16400298]
[1724250168933,0.001,59726.0,59720.0,0.17300298]
[1724250169144,0.3,59728.0,59720.0,0.16800298]
[1724250169351,0.3,59728.0,59721.0,0.16400298]
[1724250169557,0.3,59728.0,59724.0,0.007]
[1724250169558,0.301,59728.0,59724.0,0.007]
[1724250169767,0.301,59728.0,59724.0,0.17100298]
[1724250169985,0.301,59728.0,59725.0,0.16400298]
[1724250170194,0.301,59728.0,59727.0,1.22514]
[1724250170404,0.301,59728.0,59727.0,1.38814298]
[1724250170405,0.3007985,59728.0,59727.0,1.38814298]
[1724250170590,0.1914,59751.0,59732.0,0.167413]
[1724250170591,0.167371,59748.0,59732.0,0.167413]
[1724250170830,0.167372,59747.0,59733.0,0.16735083]
[1724250171043,0.334734,59749.0,59733.0,0.16400298]
[1724250171252,0.167381,59744.0,59733.0,0.16400298]
[1724250171669,0.167384,59743.0,59733.0,0.16400298]
[1724250171871,0.167388,59742.0,59727.0,0.401]
[1724250172081,0.167371,59748.0,59730.0,0.49229154]
[1724250172292,0.167371,59748.0,59733.0,0.16741]
[1724250172500,0.1,59747.0,59733.0,0.33476186]
[1724250172704,0.1,59747.0,59734.0,0.33141098]
[1724250172916,0.1,59747.0,59734.0,0.16400298]
[1724250173127,0.001,59742.0,59738.0,0.167397]
[1724250173343,0.001,59742.0,59740.0,0.3925]
[1724250173550,0.001,59742.0,59741.0,0.167389]
[1724250173768,0.001,59742.0,59740.0,0.3925]
[1724250173974,0.001,59742.0,59741.0,0.184]
[1724250174383,0.167354,59754.0,59741.0,0.184]
[1724250174609,0.1,59753.0,59741.0,0.184]
[1724250174812,0.067064,59768.0,59746.0,0.167374]
[1724250175030,0.167336,59760.0,59747.0,0.16400298]
[1724250175240,0.334648,59765.0,59747.0,0.16400298]
[1724250175447,0.334649,59764.0,59747.0,0.16400298]
[1724250175659,0.20428981,59767.0,59747.0,0.16400298]
[1724250175660,0.16400298,59767.0,59751.0,0.411]
[1724250175873,0.39824479,59766.0,59751.0,0.411]
[1724250176107,0.167323,59765.0,59751.0,0.411]
[1724250176318,0.167323,59765.0,59751.0,0.57836]
[1724250176540,0.167325,59764.0,59751.0,0.411]
[1724250176751,0.1,59764.0,59752.0,0.16400298]
[1724250176961,0.006,59760.0,59752.0,0.50206484]
[1724250177182,0.006,59760.0,59755.0,0.167349]
[1724250177395,0.006,59760.0,59752.0,0.50206484]
[1724250177601,0.006,59760.0,59757.0,0.167343]
[1724250177813,0.006,59760.0,59755.0,0.502044]
[1724250178027,0.006,59760.0,59756.0,0.167346]
[1724250178251,0.000824,59775.0,59757.0,0.16400298]
[1724250178464,0.000824,59775.0,59762.0,0.334659]
[1724250178691,0.002,59765.0,59764.0,0.501973]
[1724250179110,0.000824,59775.0,59764.0,0.501973]
[1724250179111,0.000824,59775.0,59765.0,0.16732]
[1724250179542,0.000824,59775.0,59764.0,0.167323]
[1724250179804,0.334622,59769.0,59757.0,0.4124]
[1724250180021,0.167314,59768.0,59757.0,0.4124]
[1724250180239,0.167308,59770.0,59757.0,0.4124]
[1724250180448,0.4165,59774.0,59759.0,0.334672]
[1724250180659,0.1,59773.0,59760.0,0.16400298]
[1724250180890,0.000824,59775.0,59759.0,0.16400298]
[1724250181125,0.167309,59770.0,59759.0,0.16400298]
[1724250181337,0.334609,59772.0,59764.0,0.005]
[1724250181547,0.167315,59768.0,59764.0,0.005]
[1724250181763,0.501934,59769.0,59764.0,0.005]
[1724250181989,0.167317,59767.0,59757.0,0.4124]
[1724250182207,0.334622,59769.0,59744.0,0.376]
[1724250182208,0.4246,59762.0,59744.0,0.376]
[1724250182420,0.16400298,59761.0,59746.0,0.49229154]
[1724250182640,0.409,59760.0,59737.0,0.4067]
[1724250182850,0.31396328,59759.0,59737.0,0.4067]
[1724250183063,0.1,59758.0,59737.0,0.4067]
[1724250183268,0.16400298,59757.0,59737.0,0.4067]
[1724250183474,0.167386,59743.0,59737.0,0.4067]
[1724250183694,0.167381,59744.0,59737.0,0.4067]
[1724250184365,0.167371,59748.0,59737.0,0.4067]
[1724250184594,0.167383,59744.0,59737.0,0.4067]
[1724250184820,0.1,59756.0,59737.0,0.4077]
[1724250184821,0.19134992,59755.0,59737.0,0.4077]
[1724250185041,0.167377,59746.0,59737.0,0.4087]
[1724250185274,0.334737,59749.0,59737.0,0.4087]
[1724250185486,0.1,59748.0,59737.0,0.4077]
[1724250185702,0.1434726,59748.0,59737.0,0.4077]
[1724250185913,0.167379,59745.0,59737.0,0.4077]
[1724250186161,0.334746,59747.0,59737.0,0.4077]
[1724250186162,0.167372,59747.0,59737.0,0.4077]
[1724250186386,0.167381,59744.0,59737.0,0.4087]
[1724250186591,0.167374,59747.0,59737.0,0.4077]
[1724250186819,0.106,59748.0,59737.0,0.4077]
[1724250187245,0.006,59748.0,59738.0,0.16735088]
[1724250187491,0.006,59748.0,59741.0,0.167389]
[1724250187710,0.006,59748.0,59743.0,0.167383]
[1724250187922,0.006,59748.0,59742.0,0.16400298]
[1724250188140,0.006,59748.0,59742.0,0.33138798]
[1724250188141,0.007,59748.0,59742.0,0.33138798]
[1724250188379,0.267344,59757.0,59742.0,0.16400298]
[1724250188609,0.003,59745.0,59741.0,0.007]
[1724250188832,0.170379,59745.0,59741.0,0.007]
[1724250189040,0.170379,59745.0,59737.0,0.4067]
[1724250189041,0.003,59745.0,59737.0,0.4067]
[1724250189244,0.167375,59746.0,59742.0,0.007]
[1724250189452,0.167375,59746.0,59742.0,0.012]
[1724250189660,0.167375,59746.0,59742.0,0.005]
[1724250189869,0.167375,59746.0,59741.0,0.01]
[1724250190149,0.167386,59742.0,59741.0,0.01]
[1724250190363,0.001,59745.0,59741.0,0.01]
[1724250190580,0.001,59745.0,59742.0,0.4024]
[1724250190799,0.001,59745.0,59731.0,0.1854]
[1724250190800,0.001,59713.0,59712.0,0.0009064]
[1724250191044,1.740972,59713.0,59712.0,0.0009064]
[1724250191259,1.89911169,59713.0,59712.0,0.0009064]
[1724250191478,1.505037,59713.0,59712.0,0.0009064]
[1724250191898,1.839972,59713.0,59712.0,0.0009064]
[1724250192109,1.842972,59713.0,59712.0,0.0009064]
[1724250192318,1.843972,59713.0,59712.0,0.0019064]
[1724250192501,2.71771808,59713.0,59712.0,0.0009064]
[1724250192752,2.604507,59713.0,59712.0,0.0009064]
[1724250192965,2.619507,59713.0,59712.0,0.0029064]
[1724250193215,2.619507,59713.0,59712.0,0.0019064]
[1724250193431,0.958087,59706.0,59700.0,0.0009009]
[1724250193668,1.326035,59706.0,59700.0,0.0009009]
[1724250193870,1.728035,59706.0,59700.0,0.0009009]
[1724250194318,2.248509,59706.0,59700.0,0.0009009]
[1724250194526,2.583483,59706.0,59700.0,0.0009009]
[1724250194747,2.583483,59706.0,59671.0,0.009253]
[1724250194748,1.744677,59672.0,59671.0,0.009253]
[1724250195210,1.845677,59672.0,59671.0,0.009253]
[1724250195424,1.849677,59672.0,59671.0,0.009253]
[1724250195640,2.184842,59672.0,59671.0,0.009253]
[1724250195857,2.00967998,59672.0,59671.0,0.009253]
[1724250196072,0.97164998,59672.0,59671.0,0.009253]
[1724250196315,0.78074998,59672.0,59671.0,0.009253]
[1724250196541,1.11591498,59672.0,59671.0,0.009253]
[1724250196967,0.76674998,59672.0,59671.0,0.009253]
[1724250197615,0.1,59672.0,59671.0,0.009253]
[1724250197832,0.167555,59682.0,59671.0,0.009253]
[1724250198049,0.1856,59686.0,59671.0,0.009253]
[1724250198050,0.16400298,59681.0,59671.0,0.009253]
[1724250198261,0.335123,59680.0,59671.0,0.009253]
[1724250198466,0.167575,59675.0,59671.0,0.009253]
[1724250198674,0.1,59674.0,59671.0,0.009253]
[1724250198909,0.267578,59674.0,59671.0,0.009253]
[1724250199126,0.1,59674.0,59671.0,0.009253]
[1724250199332,0.335098,59684.0,59671.0,0.009253]
[1724250199333,0.592135,59689.0,59671.0,0.009253]
[1724250199543,0.20400298,59688.0,59672.0,0.5958]
[1724250199727,0.20400298,59688.0,59672.0,0.60736541]
[1724250200408,0.4246,59678.0,59672.0,0.01156541]
[1724250200613,0.592167,59678.0,59672.0,0.01156541]
[1724250200824,0.4246,59678.0,59671.0,0.009253]
[1724250201037,0.1,59677.0,59671.0,0.009253]
[1724250201722,0.49229154,59692.0,59672.0,0.3905]
[1724250201933,0.167552,59683.0,59672.0,0.3905]
[1724250202145,0.335077,59688.0,59672.0,0.3905]
[1724250202363,0.335124,59680.0,59673.0,0.01155251]
[1724250202575,0.16400298,59679.0,59673.0,0.01155251]
[1724250202782,0.16400298,59679.0,59671.0,0.009253]
[1724250202996,0.09633406,59687.0,59671.0,0.009253]
[1724250203209,0.4246,59688.0,59673.0,0.573]
[1724250203424,0.334994,59703.0,59674.0,0.16735423]
[1724250203639,0.167499,59702.0,59679.0,0.393]
[1724250203860,0.167491,59705.0,59687.0,0.167538]
[1724250204084,0.16749,59705.0,59688.0,0.393]
[1724250204304,0.16749,59705.0,59688.0,0.560536]
[1724250204518,0.4246,59708.0,59688.0,0.56868126]
[1724250204725,0.167485,59707.0,59690.0,0.16753]
[1724250204937,0.167485,59707.0,59691.0,0.167529]
[1724250205138,0.167487,59706.0,59691.0,0.167529]
[1724250205371,0.167487,59706.0,59691.0,0.17916706]
[1724250205612,0.4246,59708.0,59691.0,0.01163806]
[1724250205613,0.592082,59708.0,59691.0,0.01163806]
[1724250205855,0.592082,59708.0,59692.0,0.3904]
[1724250206087,0.167482,59708.0,59693.0,0.167523]
[1724250206291,0.1,59707.0,59693.0,0.1791352]
[1724250206510,0.1,59707.0,59693.0,0.5141822]
[1724250206720,0.4681,59710.0,59693.0,0.5141822]
[1724250206924,0.4681,59710.0,59693.0,0.8492292]
[1724250207756,0.4681,59710.0,59693.0,0.0116122]
[1724250207967,0.4681,59710.0,59693.0,0.5141822]
[1724250208175,0.4681,59710.0,59693.0,1.35162939]
[1724250208385,0.4681,59710.0,59702.0,0.167496]
[1724250208597,0.4681,59710.0,59693.0,0.51401239]
[1724250208598,0.167472,59712.0,59694.0,0.335037]
[1724250208806,0.167483,59708.0,59693.0,0.1791342]
[1724250209019,0.167483,59708.0,59695.0,0.01158642]
[1724250209242,0.167483,59708.0,59694.0,0.17911931]
[1724250209432,0.16400298,59707.0,59696.0,0.01157353]
[1724250209677,0.16400298,59707.0,59695.0,0.01158642]
[1724250209895,0.16400298,59707.0,59697.0,0.01156064]
[1724250210326,0.16400298,59707.0,59693.0,0.335042]
[1724250210535,0.16400298,59707.0,59698.0,0.01154775]
[1724250210785,0.16400298,59707.0,59696.0,0.167514]
[1724250210998,0.1,59718.0,59696.0,0.16400298]
[1724250211211,0.167469,59713.0,59699.0,0.167506]
[1724250211424,0.167471,59712.0,59697.0,0.73236424]
[1724250211692,0.167467,59714.0,59700.0,0.0115116]
[1724250211909,0.167467,59714.0,59700.0,0.167503]
[1724250212114,0.167466,59714.0,59699.0,0.167504]
[1724250212320,0.167466,59714.0,59701.0,0.01149872]
[1724250212734,0.167468,59713.0,59702.0,0.01148583]
[1724250213196,0.167495,59703.0,59691.0,0.4015]
[1724250213412,0.167492,59704.0,59703.0,0.01147294]
[1724250213631,0.33507,59689.0,59675.0,0.4035]
[1724250213836,0.33507,59689.0,59671.0,0.191453]
[1724250213837,1.765645,59689.0,59671.0,0.009253]
[1724250214051,1.865645,59689.0,59671.0,0.009253]
[1724250214699,2.79431798,59689.0,59671.0,0.009253]
[1724250214911,2.11917798,59689.0,59671.0,0.009253]
[1724250215552,2.11917798,59689.0,59671.0,0.176837]
[1724250215767,1.44903798,59689.0,59675.0,0.3759]
[1724250216030,0.45280298,59689.0,59675.0,0.543472]
[1724250216291,0.62033798,59689.0,59675.0,0.3759]
[1724250216534,1.38834358,59689.0,59675.0,0.3759]
[1724250217079,0.43153798,59689.0,59675.0,0.3759]
[1724250217354,0.1,59689.0,59677.0,0.335133]
[1724250217590,0.167507,59699.0,59688.0,0.3781064]
[1724250217795,0.16400298,59698.0,59688.0,0.38977682]
[1724250218010,0.16400298,59698.0,59688.0,0.38644475]
[1724250218200,0.3863,59711.0,59688.0,0.38644475]
[1724250218411,0.38368928,59705.0,59690.0,0.167531]
[1724250218622,0.167494,59704.0,59688.0,0.5456424]
[1724250218835,0.16400298,59703.0,59691.0,0.00831979]
[1724250219045,0.16400298,59704.0,59690.0,0.335062]
[1724250219250,0.16400298,59704.0,59692.0,0.00830987]
[1724250219469,0.19715228,59703.0,59691.0,0.00831846]
[1724250219703,0.167514,59697.0,59693.0,0.00830127]
[1724250219914,0.16400298,59703.0,59692.0,0.00830987]
[1724250220124,0.167519,59695.0,59688.0,0.3781064]
[1724250220339,0.49904598,59694.0,59688.0,0.0009064]
[1724250220556,0.1,59693.0,59688.0,0.0009064]
[1724250220980,0.4246,59700.0,59688.0,0.0009064]
[1724250220981,0.167514,59697.0,59688.0,0.0009064]
[1724250221193,0.33151698,59697.0,59688.0,0.0009064]
[1724250221400,0.1,59696.0,59688.0,0.0009064]
[1724250221612,0.1,59696.0,59688.0,0.1684434]
[1724250221841,0.334967,59708.0,59690.0,0.335063]
[1724250222058,1.3985,59712.0,59691.0,0.1875]
[1724250222059,0.19749968,59707.0,59691.0,0.1875]
[1724250222278,0.6116,59712.0,59697.0,0.167512]
[1724250222507,0.36117026,59719.0,59703.0,0.167494]
[1724250222719,0.02626726,59719.0,59707.0,0.167483]
[1724250222938,0.334886,59722.0,59708.0,0.191]
[1724250223171,0.167443,59722.0,59709.0,0.4154]
[1724250223381,0.334888,59722.0,59709.0,0.4154]
[1724250223593,0.334888,59722.0,59710.0,0.0081556]
[1724250223803,0.167446,59721.0,59710.0,0.0081556]
[1724250224018,0.167429,59727.0,59710.0,0.01222038]
[1724250224227,0.49229154,59730.0,59713.0,0.167467]
[1724250224492,0.334852,59728.0,59710.0,0.01222038]
[1724250224716,0.334852,59728.0,59709.0,0.4154]
[1724250224717,0.334852,59728.0,59713.0,0.0121922]
[1724250224925,0.334852,59728.0,59712.0,0.167468]
[1724250225138,0.16743,59727.0,59713.0,0.01219205]
[1724250225345,0.167427,59728.0,59713.0,0.17965905]
[1724250225558,0.167428,59727.0,59713.0,0.17965905]
[1724250225767,0.334838,59731.0,59713.0,0.17965905]
[1724250225982,0.167426,59728.0,59713.0,0.17965905]
[1724250226193,0.0262625,59736.0,59713.0,1.62098118]
[1724250226401,0.0262625,59736.0,59713.0,1.61763203]
[1724250226402,0.49229154,59734.0,59713.0,1.61763203]
[1724250226823,0.167416,59732.0,59713.0,1.61763203]
[1724250227067,0.49229154,59734.0,59713.0,1.61763203]
[1724250227735,0.1,59733.0,59713.0,1.61763203]
[1724250227945,0.1,59735.0,59713.0,1.95356703]
[1724250228155,1e-08,59714.0,59713.0,1.95256703]
[1724250228376,1e-08,59714.0,59713.0,2.29050203]
[1724250228599,1e-08,59714.0,59713.0,1.95756703]
[1724250229458,1e-08,59714.0,59713.0,2.05756703]
[1724250230099,1e-08,59714.0,59713.0,2.05656703]
[1724250230313,1e-08,59714.0,59713.0,1.38269703]
[1724250230527,1e-08,59714.0,59713.0,1.71763203]
[1724250231671,1e-08,59714.0,59713.0,2.05256703]
[1724250231888,1e-08,59714.0,59713.0,1.61763203]
[1724250232323,1e-08,59714.0,59713.0,0.42179205]
[1724250233186,1e-08,59714.0,59713.0,0.01219205]
[1724250233609,1e-08,59714.0,59707.0,0.334967]
[1724250233835,1e-08,59714.0,59713.0,0.01217689]
[1724250234044,1e-08,59714.0,59713.0,1.40093998]
[1724250234258,1e-08,59714.0,59713.0,0.41177689]
[1724250234685,0.334841,59730.0,59724.0,0.00020155]
[1724250234889,0.167432,59726.0,59724.0,0.00020155]
[1724250235320,0.167423,59729.0,59724.0,0.00020155]
[1724250235530,0.1,59731.0,59724.0,0.00020155]
[1724250235749,0.40824,59749.0,59725.0,0.3828]
[1724250235750,0.1853,59740.0,59725.0,0.3828]
[1724250235956,0.1853,59740.0,59726.0,0.16400298]
[1724250236162,0.1803,59744.0,59728.0,0.167424]
[1724250236377,0.1803,59744.0,59729.0,0.167421]
[1724250236583,0.167387,59742.0,59729.0,0.179393]
[1724250237001,0.515066,59744.0,59729.0,0.179393]
[1724250237002,0.347683,59744.0,59729.0,0.011972]
[1724250237217,0.1803,59744.0,59729.0,0.011972]
[1724250237461,0.3033737,59744.0,59729.0,0.011972]
[1724250238097,0.3033737,59744.0,59729.0,0.167422]
[1724250238098,0.167384,59743.0,59729.0,0.167422]
[1724250238309,0.167387,59742.0,59730.0,0.01195913]
[1724250238565,0.16400298,59742.0,59730.0,0.01195913]
[1724250238779,0.334818,59734.0,59724.0,0.00020155]
[1724250239004,0.1,59741.0,59724.0,0.00020155]
[1724250239005,0.167403,59736.0,59724.0,0.00020155]
[1724250239219,0.0580021,59740.0,59725.0,0.17601793]
[1724250239430,0.1,59743.0,59725.0,0.17601793]
[1724250239642,0.167393,59740.0,59727.0,0.167428]
[1724250239861,0.35393968,59743.0,59727.0,0.167428]
[1724250239862,0.334773,59742.0,59727.0,0.167428]
[1724250240069,0.167393,59740.0,59728.0,0.01197684]
[1724250240296,0.04757272,59741.0,59728.0,0.01197684]
[1724250240297,0.167398,59738.0,59728.0,0.01197684]
[1724250240503,0.16400298,59739.0,59724.0,0.00020155]
[1724250240718,0.16400298,59739.0,59729.0,0.01196497]
[1724250240940,0.00924,59749.0,59740.0,0.33478]
[1724250241174,0.00924,59749.0,59737.0,0.5952]
[1724250241175,0.00824,59749.0,59737.0,0.4024]
[1724250241385,0.00824,59749.0,59741.0,0.00820182]
[1724250241601,0.00824,59749.0,59737.0,0.569798]
[1724250241816,0.00824,59749.0,59742.0,0.00819045]
[1724250242032,0.00824,59749.0,59737.0,0.4024]
[1724250242243,0.00824,59749.0,59743.0,0.00818187]
[1724250242494,0.00824,59749.0,59737.0,0.4024]
[1724250242705,0.00824,59749.0,59732.0,0.527625]
[1724250242706,0.00824,59749.0,59748.0,0.3949]
[1724250242919,0.00824,59749.0,59748.0,0.562269]
[1724250243130,0.00824,59749.0,59748.0,0.73440769]
[1724250243342,0.00824,59749.0,59748.0,1.26674669]
[1724250243550,0.00824,59749.0,59748.0,1.60248569]
[1724250243790,0.00824,59749.0,59748.0,1.93922469]
[1724250244002,0.00824,59749.0,59748.0,1.93622469]
[1724250244445,0.00824,59749.0,59748.0,1.94029147]
[1724250244859,0.00824,59749.0,59748.0,1.60555247]
[1724250245309,0.00824,59749.0,59748.0,1.60148303]
[1724250245749,0.00824,59749.0,59748.0,0.40303305]
[1724250245960,0.00824,59749.0,59748.0,0.57040205]
[1724250246393,0.00824,59749.0,59748.0,0.90920684]
[1724250246605,0.00824,59749.0,59748.0,0.40709884]
[1724250246823,0.90497598,59749.0,59748.0,0.01219884]
[1724250247040,0.90497598,59749.0,59727.0,0.1956]
[1724250247041,0.66074058,59749.0,59728.0,0.49229154]
[1724250247250,0.334767,59743.0,59728.0,0.49229154]
[1724250247471,0.70679198,59742.0,59728.0,0.65971654]
[1724250247702,0.89567118,59742.0,59725.0,0.334867]
[1724250247915,0.89567118,59742.0,59721.0,0.3958]
[1724250247916,0.72828218,59742.0,59730.0,0.167419]
[1724250248152,0.1,59742.0,59732.0,0.167414]
[1724250248364,0.1,59742.0,59732.0,0.167413]
[1724250248577,0.16400298,59741.0,59725.0,0.334865]
[1724250248792,0.16400298,59741.0,59726.0,0.16743]
[1724250248997,0.16400298,59741.0,59721.0,0.3958]
[1724250249416,0.16400298,59741.0,59716.0,0.334916]
[1724250249417,0.5104,59740.0,59716.0,0.334916]
[1724250249625,0.167414,59733.0,59718.0,0.167453]
[1724250250037,0.334802,59737.0,59720.0,0.167446]
[1724250250038,0.1,59732.0,59720.0,0.167446]
[1724250250684,0.1,59732.0,59719.0,0.3349]
[1724250251109,0.282,59746.0,59730.0,0.167418]
[1724250251314,0.282,59746.0,59728.0,0.167425]
[1724250251527,0.282,59746.0,59730.0,0.167418]
[1724250251736,0.167385,59743.0,59728.0,0.167424]
[1724250251967,0.16400298,59739.0,59719.0,0.334896]
[1724250252174,0.334762,59744.0,59730.0,0.167419]
[1724250252175,0.16738,59744.0,59730.0,0.167419]
[1724250252384,0.167388,59742.0,59727.0,0.167427]
[1724250252592,0.167391,59741.0,59727.0,0.167427]
[1724250253057,0.334756,59745.0,59728.0,0.3867]
[1724250253264,0.167384,59743.0,59729.0,0.167422]
[1724250253476,0.16400298,59742.0,59729.0,0.167422]
[1724250253688,0.16400298,59742.0,59728.0,0.72155]
[1724250253689,0.59877598,59742.0,59728.0,0.3867]
[1724250253898,0.16400298,59741.0,59728.0,0.3867]
[1724250254125,0.182,59746.0,59739.0,0.167394]
[1724250254340,0.239344,59746.0,59734.0,0.334817]
[1724250254557,0.16400298,59745.0,59728.0,0.3867]
[1724250254772,0.16400298,59745.0,59722.0,0.3937]
[1724250254773,0.0786547,59744.0,59722.0,0.3937]
[1724250254984,0.16700298,59743.0,59722.0,0.3937]
[1724250255199,0.16700298,59743.0,59717.0,0.33491]
[1724250255200,0.167412,59733.0,59717.0,0.33491]
[1724250255419,0.167412,59733.0,59719.0,0.16745]
[1724250255633,0.334806,59736.0,59717.0,0.33491]
[1724250255634,0.167414,59732.0,59717.0,0.33491]
[1724250255873,0.167413,59733.0,59719.0,0.167449]
[1724250256087,0.167423,59729.0,59716.0,0.167458]
[1724250256302,0.167434,59725.0,59713.0,0.0009053]
[1724250256510,0.33143698,59725.0,59713.0,0.0009053]
[1724250256741,0.26400298,59725.0,59715.0,0.167461]
[1724250256948,0.26400298,59725.0,59713.0,0.0009053]
[1724250257167,0.26400298,59725.0,59715.0,0.167459]
[1724250257375,0.26400298,59725.0,59713.0,0.0009053]
[1724250257376,0.26400298,59725.0,59713.0,0.1683703]
[1724250258044,0.1,59725.0,59714.0,0.334929]
[1724250258252,0.1,59731.0,59719.0,0.167449]
[1724250258467,0.1,59731.0,59722.0,0.167442]
[1724250258670,0.1,59732.0,59722.0,0.167442]
[1724250259088,0.1,59732.0,59720.0,0.167445]
[1724250259271,0.1,59732.0,59719.0,0.16745]
[1724250259870,0.167421,59730.0,59714.0,0.334929]
[1724250260030,0.434828,59732.0,59713.0,0.3358393]
[1724250260031,0.334851,59728.0,59713.0,0.0009053]
[1724250260231,1.21777,59725.0,59713.0,0.0009053]
[1724250260433,1.56177298,59725.0,59713.0,0.0009053]
[1724250260659,1.99664098,59725.0,59713.0,0.0009053]
[1724250260883,2.02385247,59725.0,59713.0,0.0009053]
[1724250261051,2.18783125,59725.0,59713.0,0.0009053]